Cogmind - Beta 16.1 @@@ ROGUE MODE // 2026.02.24 @ 21:09:33 Player: SelfCookedBird Result: Destroyed by G-34 Mercenary with Small Laser Performance ------------- Evolutions (1) 500 Regions Visited (2) 400 Robots Destroyed (9) 45 Value Destroyed (227) 227 Prototype IDs (0) 0 Alien Tech Used (0) 0 Bonus (0) 0 TOTAL SCORE: 1172 Bonus ------- None Cogmind --------- Core Integrity 0/400 Matter 201/300 Energy 100/100 System Corruption 0% Temperature Cool (6) Movement Core (50) Location -9/Materials Parts ------- > --- POWER (1) -------- (None) > --- PROPULSION (4) --- (None) > --- UTILITY (2) ------ (None) > --- WEAPON (2) ------- (None) > --- INVENTORY (5) ---- Wheel Small Storage Unit Targeting Computer Improved Weapon Shielding Assault Cannon Peak State ------------ > --- POWER ------------ Light Ion Engine > --- PROPULSION ------- Titanium Leg Titanium Leg Titanium Leg Titanium Leg > --- UTILITY ---------- Small Storage Unit Improved Weapon Shielding > --- WEAPON ----------- Assault Cannon Assault Cannon > --- INVENTORY -------- Wheel Assault Cannon [Rating: 23] Favorites ----------- Power Light Ion Engine Engine Light Ion Engine Propulsion Titanium Leg Leg Titanium Leg Flight Unit Flight Unit Utility Large Storage Unit Device Heat Sink Storage Large Storage Unit Processor Targeting Computer Protection Improved Weapon Shielding Weapon Assault Cannon Energy Gun EM Pulse Gun Ballistic Gun Assault Rifle Ballistic Cannon Assault Cannon Launcher Grenade Launcher Build | -11 -10 -9 ------- Run | Yrd Mat Mat Slots Evolved 2 | . . 2 Power . | . . . Propulsion 2 | . . 2 Utility . | . . . Weapon . | . . . Parts Attached 21 | 6 5 10 Power 2 | 1 . 1 Engine 2 | 1 . 1 Core . | . . . Reactor . | . . . Propulsion 8 | 2 2 4 Treads . | . . . Leg 6 | 2 . 4 Wheel . | . . . Hover . | . . . Flight 2 | . 2 . Utility 6 | 1 2 3 Device 2 | 1 1 . Storage 2 | . 1 1 Processor 1 | . . 1 Hackware . | . . . Protection 1 | . . 1 Artifact . | . . . Weapon 5 | 2 1 2 Energy Gun 1 | 1 . . Energy Cannon . | . . . Ballistic Gun 1 | 1 . . Ballistic Cannon 2 | . . 2 Launcher 1 | . 1 . Special Weapon . | . . . Impact Weapon . | . . . Slashing Weapon . | . . . Piercing Weapon . | . . . Special Melee Weapon . | . . . Unidentified Prototypes . | . . . Parts Lost 2 | . . 2 Power 1 | . . 1 Propulsion . | . . . Utility 1 | . . 1 Weapon . | . . . Highest Loss Streak 2 | . . 2 To Critical Strikes . | . . . Average Backups 3 | . 2 4 Power . | . . . Propulsion 1 | . 2 1 Utility 1 | . . 2 Weapon . | . . . Tool/Special . | . . . Unused Backups 4 | . . 4 Power . | . . . Propulsion 2 | . . 2 Utility 1 | . . 1 Weapon 1 | . . 1 Tool/Special . | . . . Average Slot Usage (%) 79 | . 66 85 Engine 9 | . 10 9 Leg 33 | . 20 39 Device 4 | . 14 . Storage 8 | . 6 8 Processor 5 | . . 7 Ballistic Gun 3 | . 10 . Ballistic Cannon 12 | . . 18 Peak Build Rating 23 | 6 7 23 Average Rating 12 | 3 4 18 On Entrance 1 | . 5 . Avg Prop Armor Cover (%) 5 | . . 5 Naked Turns 82 | . 42 40 Heaviest Build 33 | 8 11 33 Greatest Support 51 | 20 20 51 Greatest Overweight (x) 2 | . 2 . Average Overweight (x) . | . . . Largest Inventory Capacity 15 | 5 8 15 Average Capacity 9 | 5 6 12 Most Carried 5 | 2 5 5 Average Carried 3 | . 2 4 Final Capacity 5 | 5 5 5 Final Carried 5 | 2 5 5 Class Distribution -------------------- 100% | Mutant Dominant Class ---------------- Mutant | -10/Materials Mutant | -9/Materials Resources | -11 -10 -9 ----------- Run | Yrd Mat Mat Matter Collected 374 | 265 42 67 Remotely . | . . . Salvage Created 242 | 40 109 93 Parts 20 | 3 9 8 Haulers Intercepted . | . . . Recyclers Shooed . | . . . Parts Field Recycled . | . . . Retrieved Matter . | . . . Parts Self-Destructed . | . . . Prevented . | . . . Parts Restored . | . . . Kills | -11 -10 -9 ------- Run | Yrd Mat Mat Combat Hostiles Destroyed 8 | 1 5 2 Melee 2 | . 2 . Guns 3 | 1 2 . Cannons 2 | . . 2 AOE 1 | . 1 . Classes Destroyed 4 | 1 1 2 Watcher 1 | . . 1 Swarmer 3 | . 3 . Grunt 4 | 1 2 1 Sentry 1 | . . 1 Best Kill Streak 3 | 1 3 2 Combat Bots Only 3 | 1 3 1 Max Kills in Single Turn 1 | 1 1 1 Gunslinging . | . . . Exploded 1 | . 1 . Melee 1 | . 1 . Uniques/NPCs Destroyed . | . . . Combat | -11 -10 -9 -------- Run | Yrd Mat Mat Hostile Shots Fired 189 | 7 54 128 Missed 65 | 2 19 44 Hits 124 | 5 35 84 Projectile 124 | 5 35 84 Critical Strikes 1 | . . 1 Damage Taken 1308 | 54 337 917 Core 561 | . 157 404 Absorbed by Shields . | . . . Core Remaining (%) 68 | 100 37 . Volleys Fired 14 | 5 4 5 Largest 2 | 2 2 2 Hottest 74 | 60 50 74 Shots Fired 26 | 10 6 10 Gun 14 | 10 4 . Cannon 10 | . . 10 Launcher 2 | . 2 . Special . | . . . Kinetic 19 | 5 4 10 Thermal . | . . . Explosive 2 | . 2 . Electromagnetic 5 | 5 . . Robot Hit Streak 4 | 4 2 4 Robot Miss Streak 2 | 2 2 1 Penetration Max . | . . . Secondary Targets . | . . . Shots Hit Robots 16 | 7 3 6 Core Hits 17 | 2 11 4 Critical Kills . | . . . Critical Parts Destroyed . | . . . Critical Strikes . | . . . Melee Attacks . | . . . Impact . | . . . Slashing . | . . . Piercing . | . . . Sneak Attacks . | . . . Combat Hostiles . | . . . Follow-up Attacks . | . . . Damage Inflicted 428 | 84 184 160 Guns 127 | 84 43 . Cannons 148 | . . 148 Explosions 110 | . 110 . Melee . | . . . Ramming 43 | . 31 12 Kinetic 237 | 46 43 148 Thermal . | . . . Explosive 110 | . 110 . Electromagnetic 38 | 38 . . Impact . | . . . Slashing . | . . . Piercing . | . . . Highest Corruption . | . . . Average Corruption . | . . . Corruption Purged . | . . . Corruption Blocked . | . . . Overload Shots . | . . . Overflow Damage . | . . . Projectiles . | . . . Explosions . | . . . Melee . | . . . Knockbacks 1 | . . 1 Impact . | . . . Kinetic 1 | . . 1 Secondary . | . . . Self-Inflicted Damage 13 | . 12 1 Shots . | . . . Rammed 10 | . 8 2 Targets Rammed 11 | . 8 3 Kicked 1 | . . 1 Crushed . | . . . Highest Temperature 30 | 30 . 15 Average Temperature 13 | 19 . 7 Received Heat Transfer 456 | 30 60 366 Siege Activations . | . . . Martial Activations . | . . . Shielding Activations . | . . . Robots Disrupted . | . . . Combat Hostiles . | . . . Robots Corrupted . | . . . Combat Hostiles . | . . . Parts Fried . | . . . Impact Corruptions . | . . . Robots Melted . | . . . Combat Hostiles . | . . . Parts Melted . | . . . Heat Transferred . | . . . Parts Sabotaged . | . . . Parts Stolen . | . . . Parts Stripped . | . . . Power Chain Reactions . | . . . Alert | -11 -10 -9 ------- Run | Yrd Mat Mat Maximum Alert Level . | . . . Low Security (%) 100 | 100 100 100 Level 1 . | . . . Level 2 . | . . . Level 3 . | . . . Level 4 . | . . . Level 5 . | . . . High Security . | . . . Max Security . | . . . Peak Influence 91 | 20 91 51 Initial 38 | . 6 38 Average 13 | 2 30 10 Influence Increases 256 | 20 141 95 Destroy 0b10 Robot/C 160 | 20 100 40 Destroy 0b10 Robot/NC 5 | . . 5 Destroy Leader 32 | . 20 12 Successful Hack 5 | . . 5 Destroy Structure 9 | . 6 3 Lose Combat Pursuer 45 | . 15 30 Influence Decreases 213 | 10 60 143 Entered New Map 57 | . 4 53 Time Decay 148 | 10 56 82 Lost Part 8 | . . 8 Squads Dispatched 3 | . 1 2 Investigation 1 | . . 1 Extermination . | . . . Reinforcement 2 | . 1 1 Assault . | . . . Garrison . | . . . Intercept . | . . . Searches Triggered . | . . . Construction Impeded . | . . . Haulers Reinforced . | . . . Active Scanning Responses . | . . . Cargo Convoy Interrupts . | . . . Stealth | -11 -10 -9 --------- Run | Yrd Mat Mat Distress Signals 2 | . . 2 Communications Jammed . | . . . Distress Signals . | . . . Times Spotted 34 | 1 8 25 Peak Tracking Total 13 | 1 5 13 Tactical Retreats 2 | . 1 1 Traps | -11 -10 -9 ------- Run | Yrd Mat Mat Traps Triggered . | . . . Indirectly . | . . . Trap Hack Attempts . | . . . Triggered . | . . . Disarmed . | . . . Reprogrammed . | . . . Reused . | . . . Traps Extracted . | . . . Installed . | . . . Triggered . | . . . Machines | -11 -10 -9 ---------- Run | Yrd Mat Mat Machines Disabled . | . . . Max in Single Turn . | . . . Machines Repaired . | . . . Machines Dismantled . | . . . Machines Sabotaged . | . . . Overloaded Fab Kills . | . . . Hacking | -11 -10 -9 --------- Run | Yrd Mat Mat Machines Accessed 4 | . . 4 Terminals 3 | . . 3 Fabricators . | . . . Repair Stations . | . . . Recycling Units 1 | . . 1 Scanalyzers . | . . . Garrison Access . | . . . Total Hacks 12 | . . 12 Successful 9 | . . 9 Failed 3 | . . 3 Catastrophic 1 | . . 1 Database Lockouts . | . . . Manual 1 | . . 1 Terminals 8 | . . 8 Fabricators . | . . . Repair Stations . | . . . Recycling Units 4 | . . 4 Scanalyzers . | . . . Garrison Access . | . . . Terminal Hacks 5 | . . 5 Record 4 | . . 4 Alert Level 1 | . . 1 Fabricator Hacks . | . . . Repair Station Hacks . | . . . Recycling Unit Hacks 4 | . . 4 Process 1 | . . 1 Report Inventory 1 | . . 1 Retrieve Matter 2 | . . 2 Scanalyzer . | . . . Garrison Access Hacks . | . . . Unauthorized Hacks . | . . . Terminals . | . . . Fabricators . | . . . Repair Stations . | . . . Recycling Units . | . . . Scanalyzers . | . . . Garrison Access . | . . . Data Cores Recovered . | . . . Used . | . . . Hacking Detections 2 | . . 2 Full Trace Events 1 | . . 1 Feedback Events . | . . . Feedback Blocked . | . . . Robot Schematics Acquired . | . . . Robots Built . | . . . Authchips . | . . . Time . | . . . Total Robot Build Rating . | . . . Part Schematics Acquired . | . . . Parts Built . | . . . Authchips . | . . . Time . | . . . Total Part Build Rating . | . . . Part Studies Acquired . | . . . Parts Repaired . | . . . Time . | . . . Parts Recycled . | . . . Recycled Matter 16 | . . 16 Retrieved Matter 16 | . . 16 Retrieved Components . | . . . Parts Scanalyzed . | . . . Part Schematics Acquired . | . . . Parts Damaged . | . . . Bothacking | -11 -10 -9 ------------ Run | Yrd Mat Mat Used RIF Installer . | . . . Robots Hacked . | . . . Non-combat . | . . . Combat . | . . . Robot Hacks Applied . | . . . Relay Couplers Released . | . . . Fabnet Peak Effective % . | . . . Robots Rewired . | . . . Allies Hacked . | . . . Hacks Repelled . | . . . Allies | -11 -10 -9 -------- Run | Yrd Mat Mat Total Allies . | . . . Largest Group . | . . . Highest-Rated Group . | . . . Highest-Rated Ally . | . . . Total Orders . | . . . Ally Attacks . | . . . Total Damage . | . . . Kills . | . . . Allies Corrupted . | . . . Allies Melted . | . . . Intel | -11 -10 -9 ------- Run | Yrd Mat Mat Active Infowar (turns) 36 | . 36 . Structural 36 | . 36 . Robot Analysis Total . | . . . Derelict Logs Recovered . | . . . Drone Launches . | . . . Drone Recoveries . | . . . Exploration | -11 -10 -9 ------------- Run | Yrd Mat Mat Turns Passed 695 | 115 169 411 Spaces Moved 516 | 82 154 280 Core 154 | 14 67 73 Treads . | . . . Legs 358 | 68 83 207 Wheels . | . . . Hover . | . . . Flight 4 | . 4 . Fastest Speed 50 | 50 50 50 Average Speed 103 | 108 90 109 Slowest Speed 210 | 120 210 130 Overloaded Moves . | . . . Propulsion Burnouts . | . . . Robots Hopped . | . . . Potential Cave-ins . | . . . Cave-ins Triggered . | . . . Exploration Rate (%) 19 | 7 26 24 Regions Visited 2 Branch Regions . Pre-discovered Areas . | . . . Known Exits Taken . | . . . Unknown Exits Taken 2 | 1 1 . Scrap Searched . | . . . Spaces Dug . | . . . Terrain Destroyed 10 | . 8 2 Melee . | . . . Projectile 2 | . . 2 AOE 8 | . 8 . Terrain Rammed . | . . . Walls Destroyed . | . . . Machines Disabled . | . . . Actions | -11 -10 -9 --------- Run | Yrd Mat Mat Total 640 | 96 173 371 Wait 67 | . . 67 Move 514 | 81 153 280 Hop . | . . . Pick Up 7 | 2 2 3 Fast Attach 15 | 6 2 7 Attach 2 | . . 2 Detach 1 | 1 . . Swap 6 | . 4 2 Drop 3 | 1 . 2 Fire 14 | 5 4 5 Melee . | . . . Ram 10 | . 8 2 Kick 1 | . . 1 Crush . | . . . Escape Stasis . | . . . Rewire . | . . . Trap . | . . . Miscellaneous . | . . . Route ------- -11/Scrapyard -10/Materials -9/Materials (discovered 1 exit: [*Mat]) History --------- Turn | Location | Event 2 | -11/Scrapyard | Met Revision 17 60 | -11/Scrapyard | Discovered new exit (range 8) 116 | -11/Scrapyard | Entered Materials 243 | -10/Materials | Released all parts (7) 265 | -10/Materials | Core integrity fell below 50% 271 | -10/Materials | Discovered new exit (range 8) 285 | -10/Materials | Entered another Materials area 285 | -9/Materials | Evolved 2 slots: Propulsion x2 344 | -9/Materials | Build established: Mutant 660 | -9/Materials | Released all parts (7) 679 | -9/Materials | Core integrity fell below 50% 694 | -9/Materials | Core integrity fell below 20% 694 | -9/Materials | Discovered new exit (range 16) 696 | -9/Materials | Destroyed by G-34 Mercenary with Small Laser Last Messages --------------- Released Titanium Leg. Released Assault Cannon. Released Lrg. Storage Unit. R-06 Scavenger collects Lrg. Storage Unit. R-06 Scavenger collects Titanium Leg. Connecting with Terminal... Slammed into G-34 Mercenary. G-34 Mercenary destroyed. M-13 Machinist repairs G-34 Mercenary. K-01 Serf collects debris. O-16 Technician: "IFF HANDSHAKE FAILED. SECURING TERMINAL." ALERT: Hostiles spotted, dispatching reinforcements to Terminal M004. Connecting with Terminal... >>Alert(Check) Current Alert Level: Low Security ALERT: Suspicious activity at Terminal M008. Dispatching Investigation squad. [Achievement: One Hack Too Far] Slammed into G-47 Trooper. EXIT=FOUND Map ----- +----------------------------------------------------+ | ?????????????????????????# | | ?????????????????????????## # | | ??????????????????????????# # | | ??????????????????????????# # | | ??????????????????????????# # | | ????????????????????#######+# | | ????????????????????# | | ????????????????????# | | ###########?????????# """ """ | | # T #?????????# """ """ | | # #?????????# """ """ | | # """ #?????????# | | # """"" #?????????#% | | # """"" #?????????# ! | | # """"" #?????????#"#/##### | | # """ #?????????### ##??? | | # #?????????### "##?? | | #####g############### = [ #?? | | ???# s g =! #?? | | ???# g g =]!= #?? | | ???# kY [%*= #?? | | ???# sg##########+### #?? | | ???# #???????# ## ##?? | | ???# #???????# T ## #??? | | ???# #???????# ## #??? | | ???#@ #???????# ## #??? | | ???# #???????# ## #??? | | ???# #???????# ## #??? | | ???# +???????# = ## #??? | | ???# #???????# # ??? | | ???# #???????# # ??? | | ???# gg#???????###### ?? | | ???# #????????????? ?? | | ???# g#?????????????? ??? | | ???? g ????????????????????? | | ???? ????????????????????? | | ???? ????????????????????? | | ???? < ???????????????????? | | ???? ##???????????????????? | | ????####????????????????????? | | ????????????????????????????? | | ????????????????????????????? | | ????????????????????????????? | | ????????????????????????????? | | ????????????????????????????? | | ????????????????????????????? | | ????????????????????????????? | | ????????????????????????????? | | ????????????????????????????? | | ????????????????????????????? | +----------------------------------------------------+ Best States ------------- Heat Dissipation 35 Energy Generation 10 Energy Capacity 125 Matter Stores 300 Matter Capacity 300 Sight Range 16 Terrain Scan Density 10 Weapon Shielding 66 Evasion (%) 55 Targeting Accuracy 5 Item Schematics ----------------- None Robot Schematics ------------------ None Fabricated ------------ Nothing Repaired ---------- Nothing Studied --------- None Alien Tech Used ----------------- None Achievements -------------- Fist Fight Live, Flee, And Rebuild One Hack Too Far Challenges ------------ None Game ------ Seed LauncherStasisMultirail Manual? 0 Play Time 00:11:02 Cumulative 0.7 hours Start 2026.02.24 @ 20:59:34 End 2026.02.24 @ 21:09:33 Sessions 1 Manual Loads 0 Difficulty Rogue Special Mode None Game No. 3 Rogue 3 Adventurer 0 Explorer 0 Win Type - Total 0 Types 0/0/0/0/0/0/0/0/0/0 Lore% 0 Gallery% 3 Achievement% 3 Wizard Run 0 Options --------- Layout 1 ASCII 0 Keyboard 1 Movement Arrows Keybinds 0 Fullscreen 1 Font 32/SmallcapsGlow Map View 77x35 Zoom Use 0% Tactical HUD 0 Map Filters NONE Filters NONE Steam 0 RUN: e96e81c4-53b2-44bc-a232-52e4acf65e11